fUSD/lending_fUSD_20251226
["ID","MTS","AMOUNT","RATE_DAILY","PERIOD"]
[399865342,1766771437163,-500.0,0.00013598,2]
[399865343,1766771437173,-500.0,0.00013598,2]
[399865344,1766771437182,-500.0,0.00013598,2]
[399865345,1766771437192,-52.71118017,0.00013598,2]
[399865346,1766771437206,-447.28881983,0.00013598,2]
[399865347,1766771437216,-500.0,0.00013598,2]
[399865348,1766771437226,-1828.61382694,0.00013599,2]
[399865349,1766771437238,-16276.87627361,0.00013599,2]
[399865352,1766771437251,-2408.15635123,0.00013599,2]
[399865359,1766771437742,-391.63450093,0.00013599,2]
[399865360,1766771437754,-1496.01948674,0.00013599,2]
[399865361,1766771437795,-632.13150075,0.00013599,2]
[399865362,1766771437807,-664.98932389,0.00013599,2]
[399865421,1766771439578,-608.68307212,0.00013599,2]
[399865422,1766771439632,-11292.83434283,0.00013599,2]
[399865423,1766771439688,-9975.43,0.00013599,2]
[399865424,1766771439700,-4817.5945809,0.00013599,2]
[399865425,1766771439712,-1446.41958768,0.00013599,2]
[399865426,1766771439723,-3488.00000003,0.00013599,2]
[399865427,1766771439741,-4156.19990002,0.00013599,2]
[399865428,1766771439794,-737.66340702,0.00013599,2]
[399865441,1766771444007,-686157.3057498,0.00013599,2]
[399865442,1766771444021,-206763.12051691,0.00013599,2]
[399865443,1766771444032,-1200.0,0.00013698,2]
[399865444,1766771444042,-2500.0,0.00013699,2]
[399865445,1766771444052,-500.0,0.00013798,2]
[399865446,1766771444062,-532.19493219,0.00013798,2]
[399865447,1766771444072,-500.0,0.00013798,2]
[399865448,1766771444082,-500.0,0.00013798,2]
[399865449,1766771444095,-500.0,0.00013798,2]
[399865450,1766771444105,-500.0,0.00013798,2]
[399865451,1766771444116,-500.0,0.00013798,2]
[399865452,1766771444127,-1000.0,0.000138,2]
[399865453,1766771444137,-248.98,0.00013843,2]
[399865454,1766771444148,-991.69769614,0.00013887,2]
[399865455,1766771444159,-1000.0,0.00014,2]
[399865456,1766771444168,-1000.0,0.00014,2]
[399865457,1766771444178,-1000.0,0.00014,2]
[399865458,1766771444189,-760.224,0.00014,2]
[399865459,1766771444199,-1000.0,0.00014,2]
[399865460,1766771444208,-1000.0,0.00014,2]
[399865461,1766771444219,-1000.0,0.00014,2]
[399865462,1766771444229,-1000.0,0.00014,2]
[399865463,1766771444239,-344.872,0.00014,2]
[399865464,1766771444249,-166.66,0.00014017,2]
[399865465,1766771444259,-991.69769614,0.00014263,2]
[399865466,1766771444270,-166.66,0.00014312,2]
[399865467,1766771444280,-204.06621952,0.00014592,2]
[399865468,1766771444290,-166.66,0.00014607,2]
[399865469,1766771444300,-991.69769614,0.0001464,2]
[399865470,1766771444310,-195.0,0.00014875,2]
[399865471,1766771444320,-250.0,0.00014875,2]
[399865472,1766771444330,-600.0,0.00014875,2]
[399865473,1766771444340,-251.42741313,0.00014875,2]
[399865474,1766771444350,-198.27198003,0.00014875,2]
[399865475,1766771444360,-195.0,0.00014875,2]
[399865476,1766771444370,-195.0,0.00014875,2]
[399865477,1766771444381,-166.66,0.00014902,2]
[399865478,1766771444391,-806.0,0.00014958,2]
[399865479,1766771444400,-480.0,0.00015011,2]
[399865480,1766771444410,-991.69769614,0.00015017,2]
[399865481,1766771444421,-200.0,0.00015123,2]
[399865482,1766771444431,-166.66,0.00015197,2]
[399865483,1766771444442,-340.0,0.0001537,2]
[399865484,1766771444453,-991.69769614,0.00015393,2]
[399865485,1766771444463,-151.0,0.00015452,2]
[399865486,1766771444488,-151.08,0.00015452,2]
[399865487,1766771444504,-166.66,0.00015492,2]
[399865488,1766771444516,-248.98,0.00015574,2]
[399865489,1766771444526,-500.0,0.00015673,2]
[399865490,1766771444537,-500.0,0.00015673,2]
[399865491,1766771444548,-500.0,0.00015673,2]
[399865492,1766771444558,-507.00799583,0.00015673,2]
[399865493,1766771444568,-500.0,0.00015673,2]
[399865494,1766771444578,-500.0,0.00015673,2]
[399865495,1766771444589,-500.0,0.00015673,2]
[399865496,1766771444600,-991.69769614,0.0001577,2]
[399865497,1766771444612,-16956.08890334,0.00016,2]
[399865498,1766771444623,-991.69769614,0.00016147,2]
[399865499,1766771444636,-500.0,0.00016221,2]
[399865500,1766771444647,-500.0,0.00016221,2]
[399865501,1766771444661,-500.0,0.00016221,2]
[399865502,1766771444673,-1000.0,0.00016221,2]
[399865503,1766771444684,-500.0,0.00016221,2]
[399865504,1766771444695,-1000.0,0.00016221,2]
[399865505,1766771444706,-191.29332945,0.00016438,2]
[399865506,1766771444717,-5954.96,0.00016438,2]
[399865507,1766771444728,-991.69769614,0.00016523,2]
[399865508,1766771444738,-474.0,0.00016589,2]
[399865509,1766771444748,-539.35708922,0.0001666,2]
[399865510,1766771444759,-153.84228697,0.00016699,2]
[399865511,1766771444769,-500.0,0.00016699,2]
[399865512,1766771444779,-40.93353472,0.00016699,2]
[399865533,1766771503886,1162.12492044,0.0003013,120]
[399865536,1766771564420,1766.0,0.0003013,120]
[399865537,1766771565204,1916.0,0.0003013,120]
[399865538,1766771566035,507.0,0.0003013,120]
[399865539,1766771567284,630.0,0.0003013,120]
[399865540,1766771600019,5009.8205169,0.000202,30]
[399865541,1766771623663,1108.0,0.0003013,120]
[399865547,1766771682049,817.0,0.0003013,120]
[399865716,1766772631697,-167.7,0.00012787,2]
[399865717,1766772631708,-250.0,0.00012787,2]
[399865718,1766772631719,-300.0,0.00012787,2]
[399865719,1766772631729,-369.47167072,0.00012877,2]
[399865720,1766772631739,-300.0,0.00012935,2]
[399865721,1766772631749,-817.2486392,0.0001309,2]
[399865722,1766772631762,-1271.0413608,0.0001309,2]
[399865723,1766772631773,-200.37128802,0.0001311,2]
[399865724,1766772631783,-300.0,0.00013209,2]
[399865725,1766772631793,-1200.0,0.00013209,2]
[399865726,1766772631803,-300.0,0.00013209,2]
[399865727,1766772631813,-170.65068833,0.0001321,2]
[399865728,1766772631823,-714.8246733,0.0001321,2]
[399865729,1766772631834,-868.85721764,0.0001321,2]
[399865730,1766772631844,-150.0,0.00013239,2]
[399865731,1766772631854,-150.0,0.00013297,2]
[399865732,1766772631868,-500.0,0.00013298,2]
[399865733,1766772631879,-172.1385594,0.00013298,2]
[399865734,1766772631889,-200.72536634,0.00013298,2]
[399865735,1766772631899,-167.96724372,0.00013298,2]
[399865736,1766772631909,-500.59973581,0.00013298,2]
[399865737,1766772631919,-389.29307991,0.00013298,2]
[399865738,1766772631929,-500.0,0.00013298,2]
[399865739,1766772631939,-500.0,0.00013298,2]
[399865740,1766772631948,-500.0,0.00013298,2]
[399865741,1766772631959,-153.23027184,0.00013298,2]
[399865742,1766772631973,-500.0,0.00013298,2]
[399865743,1766772631983,-500.0,0.00013298,2]
[399865744,1766772631993,-500.0,0.00013298,2]
[399865745,1766772632004,-500.0,0.00013298,2]
[399865746,1766772632013,-500.0,0.00013298,2]
[399865747,1766772632023,-500.0,0.00013298,2]
[399865748,1766772632034,-500.0,0.00013298,2]
[399865749,1766772632044,-500.0,0.00013298,2]
[399865750,1766772632054,-500.0,0.00013298,2]
[399865751,1766772632067,-500.0,0.00013298,2]
[399865752,1766772632078,-500.0,0.00013298,2]
[399865753,1766772632088,-500.0,0.00013298,2]
[399865755,1766772632098,-422.52465413,0.00013298,2]
[399865757,1766772632108,-500.0,0.00013298,2]
[399865758,1766772632118,-500.0,0.00013298,2]
[399865786,1766772632406,-500.0,0.00013298,2]
[399865788,1766772632418,-500.0,0.00013298,2]
[399865790,1766772632429,-500.0,0.00013298,2]
[399865792,1766772632439,-500.0,0.00013298,2]
[399865794,1766772632449,-500.0,0.00013298,2]
[399865796,1766772632459,-500.0,0.00013298,2]
[399865798,1766772632469,-500.0,0.00013298,2]
[399865800,1766772632479,-500.0,0.00013298,2]
[399865802,1766772632488,-500.0,0.00013298,2]
[399865804,1766772632498,-500.0,0.00013298,2]
[399865806,1766772632508,-500.0,0.00013298,2]
[399865808,1766772632518,-500.0,0.00013298,2]
[399865810,1766772632528,-500.0,0.00013298,2]
[399865813,1766772632545,-500.0,0.00013298,2]
[399865815,1766772632563,-500.0,0.00013298,2]
[399865817,1766772632573,-500.0,0.00013298,2]
[399865819,1766772632585,-300.0,0.00013298,2]
[399865821,1766772632595,-174595.13419991,0.00013299,2]
[399865824,1766772632611,-2720.34950343,0.00013299,2]
[399865826,1766772632623,-271.00000022,0.00013299,2]
[399865829,1766772632641,-1474.44377077,0.00013299,2]
[399865843,1766772637804,-871.643,0.00013299,2]
[399865844,1766772637817,-393.69097478,0.00013299,2]
[399865845,1766772637913,-757.09983025,0.00013299,2]
[399865846,1766772637925,-186002.31957322,0.00013299,2]
[399865847,1766772637937,-935.58169634,0.00013299,2]
[399865863,1766772639922,-252.254964,0.00013299,2]
[399865864,1766772639934,-16274.98184835,0.00013299,2]
[399865876,1766772643561,-187.43697126,0.0001321,2]
[399865877,1766772643572,-812.56302874,0.00013299,2]
[399865886,1766772907803,159.28,7.421e-05,2]
[399865887,1766772907998,159.28,7.812e-05,2]
[399865888,1766772908420,159.28,8.202e-05,2]
[399865889,1766772908647,159.28,8.593e-05,2]
[399865890,1766772908849,159.28,8.983e-05,2]
[399865891,1766772909073,159.28,9.374e-05,2]
[399865892,1766772909252,159.28,9.765e-05,2]
[399865893,1766772909527,159.28,0.00010155,2]
[399865894,1766772909737,159.28,0.00010546,2]
[399865895,1766772910085,159.28,0.00010936,2]
[399865896,1766772910270,159.28,0.00011327,2]
[399865897,1766772910470,159.28,0.00011717,2]
[399865898,1766772943655,215.0,0.0003013,120]
[399865899,1766772964091,1000.0,0.00012,2]
[399865900,1766772974807,1000.0,0.000115,2]
[399865901,1766772988100,1000.0,0.00011,2]
[399865902,1766773210788,-249.0,0.00012108,2]
[399865903,1766773210812,-97.11299405,0.00012108,2]
[399865935,1766773831865,-62.16700595,0.00012108,2]
[399865936,1766773831876,-300.0,0.00012303,2]
[399865937,1766773831887,-28.20571336,0.00012499,2]
[399865938,1766773831899,-131.07428664,0.00012499,2]
[399865939,1766773831908,-159.28,0.00012889,2]
[399865940,1766773831919,-821.4428699,0.00013099,2]
[399865941,1766773831931,-1554.14613501,0.00013099,2]
[399865942,1766773831943,-870.89674943,0.00013099,2]
[399865943,1766773831953,-79.36871251,0.00013099,2]
[399865944,1766773831965,-108.06825874,0.00013099,2]
[399865945,1766773831975,-170.65068832,0.00013099,2]
[399865946,1766773831984,-300.0,0.00013197,2]
[399865947,1766773831994,-1200.0,0.00013197,2]
[399865948,1766773832003,-300.0,0.00013197,2]
[399865949,1766773832013,-300.0,0.00013197,2]
[399865950,1766773832023,-500.0,0.00013198,2]
[399865951,1766773832034,-500.0,0.00013198,2]
[399865952,1766773832043,-500.0,0.00013198,2]
[399865953,1766773832056,-322.25246541,0.00013198,2]
[399865954,1766773832066,-467.5770706,0.00013198,2]
[399865955,1766773832075,-150.0,0.00013198,2]
[399865956,1766773832085,-99191.25687332,0.00013199,2]
[399865957,1766773832102,-2900.00000002,0.00013199,2]
[399865969,1766773837892,-395.11769797,0.00013199,2]
[399865970,1766773838107,-342.27659209,0.00013199,2]
[399866062,1766773840007,-178.92659946,0.00012999,2]
[399866063,1766773840019,-1628.76340054,0.00013199,2]
[399866064,1766773840030,-396.66388166,0.00013199,2]
[399866065,1766773840042,-8102.83272952,0.00013199,2]
[399866066,1766773843470,-23813.68123966,0.00013199,2]
[399866067,1766773844492,-971.81328667,0.00013199,2]
[399866082,1766773846008,-500.0,0.00013199,2]
[399866094,1766774125137,167.7,0.00010064,2]
[399866095,1766774273267,-260.55256501,0.00012935,2]
[399866096,1766774274852,-181.99688653,0.00012935,2]
[399866097,1766774347969,-169.35454846,0.00012935,2]
[399866098,1766774348001,-23.88340457,0.0001307,2]
[399866099,1766774349479,-411.78225442,0.0001307,2]
[399866100,1766774352093,-310.58220187,0.0001307,2]
[399866101,1766774353799,-241.96196376,0.0001307,2]
[399866102,1766774362899,-125.09957735,0.0001307,2]
[399866103,1766774362922,-68.86384774,0.0001308,2]
[399866104,1766774378544,-97.79615226,0.0001308,2]
[399866105,1766774378570,-83.2211772,0.00013098,2]
[399866106,1766774382247,-126.7788228,0.00013098,2]
[399866107,1766774382272,-82.30864868,0.00013098,2]
[399866108,1766774384419,-476.4116144,0.00013098,2]
[399866110,1766774386547,-250.0,0.00013098,2]
[399866111,1766774388689,-223.81457857,0.00013098,2]
[399866112,1766774390234,-167.46515835,0.00013098,2]
[399866113,1766774390256,-208.60931193,0.00013099,2]
[399866114,1766774395157,-252.22392488,0.00013099,2]
[399866115,1766774586027,999.0,0.00012596,3]
[399866127,1766775031997,-271.85348333,0.00012452,2]
[399866128,1766775032008,-150.0,0.0001246,2]
[399866129,1766775032018,-463.99015312,0.00012577,2]
[399866130,1766775032035,-553.0612838,0.00012577,2]
[399866131,1766775032047,-412.34856308,0.00012577,2]
[399866132,1766775032058,-152.29,0.00012596,2]
[399866133,1766775032068,-166.7,0.00012894,2]
[399866134,1766775032078,-133.34281255,0.00012969,2]
[399866135,1766775032092,-1049.48348745,0.00012969,2]
[399866136,1766775032101,-1852.5283,0.00012969,2]
[399866137,1766775032111,-1785.91669796,0.00012969,2]
[399866138,1766775032124,-2183.06630204,0.00012969,2]
[399866139,1766775032134,-1200.0,0.00012996,2]
[399866140,1766775032144,-300.0,0.00012998,2]
[399866141,1766775032154,-5440.66531466,0.00012999,2]
[399866142,1766775032170,-5757.11439558,0.00012999,2]
[399866143,1766775032182,-801.95128758,0.00012999,2]
[399866144,1766775032195,-777.55558554,0.00012999,2]
[399866145,1766775032206,-549.67103486,0.00012999,2]
[399866146,1766775032216,-3625.4233796,0.00012999,2]
[399866147,1766775032231,-266.99999979,0.00012999,2]
[399866148,1766775032244,-366.13195705,0.00012999,2]
[399866149,1766775032261,-700.36150344,0.00012999,2]
[399866150,1766775032274,-1046.86001515,0.00012999,2]
[399866151,1766775032284,-500.0,0.00013061,2]
[399866152,1766775032294,-200.0,0.00013061,2]
[399866153,1766775032304,-200.0,0.00013061,2]
[399866154,1766775032315,-208.44399176,0.00013061,2]
[399866155,1766775032325,-151.0,0.00013061,2]
[399866156,1766775032335,-151.0,0.00013061,2]
[399866157,1766775032345,-151.0,0.00013061,2]
[399866158,1766775032356,-151.0,0.00013061,2]
[399866159,1766775032366,-151.0,0.00013061,2]
[399866160,1766775032375,-90.40171353,0.00013061,2]
[399866188,1766775038054,-60.59828647,0.00013061,2]
[399866190,1766775038065,-151.0,0.00013066,2]
[399866192,1766775038075,-640.40171374,0.00013067,2]
[399866193,1766775038108,-361.69537217,0.00013067,2]
[399866194,1766775038118,-150.0,0.00013067,2]
[399866195,1766775038130,-327.30394942,0.00013068,2]
[399866196,1766775038140,-134.27494118,0.00013068,2]
[399866197,1766775038153,-328.07493345,0.00013068,2]
[399866198,1766775038163,-336.31173316,0.00013068,2]
[399866199,1766775038180,-163.68826684,0.00013068,2]
[399866200,1766775038190,-500.0,0.00013068,2]
[399866201,1766775038200,-329.65325657,0.00013068,2]
[399866202,1766775038213,-170.34674343,0.00013068,2]
[399866203,1766775038223,-500.0,0.00013068,2]
[399866204,1766775038233,-500.0,0.00013068,2]
[399866205,1766775038243,-500.0,0.00013068,2]
[399866206,1766775038253,-500.0,0.00013068,2]
[399866207,1766775038263,-232.49449422,0.00013068,2]
[399866208,1766775038275,-267.50550578,0.00013068,2]
[399866209,1766775038285,-500.0,0.00013068,2]
[399866210,1766775038295,-500.0,0.00013068,2]
[399866211,1766775038306,-500.0,0.00013068,2]
[399866212,1766775038316,-500.0,0.00013068,2]
[399866213,1766775038331,-500.0,0.00013068,2]
[399866215,1766775038341,-500.0,0.00013068,2]
[399866217,1766775038351,-500.0,0.00013068,2]
[399866219,1766775038361,-500.0,0.00013068,2]
[399866221,1766775038372,-500.0,0.00013068,2]
[399866223,1766775038382,-500.0,0.00013068,2]
[399866225,1766775038392,-319.89961923,0.00013068,2]
[399866227,1766775038401,-500.0,0.00013068,2]
[399866229,1766775038412,-500.0,0.00013068,2]
[399866231,1766775038422,-500.0,0.00013068,2]
[399866232,1766775038432,-500.0,0.00013068,2]
[399866234,1766775038442,-500.0,0.00013068,2]
[399866236,1766775038452,-329102.4949916,0.00013069,2]
[399866239,1766775038468,-734.20333733,0.00013069,2]
[399866241,1766775038480,-542.96667341,0.00013069,2]
[399866243,1766775038492,-813.8673398,0.00013069,2]
[399866260,1766775040119,-9927.6567,0.00013069,2]
[399866263,1766775040132,-5381.70105701,0.00013069,2]
[399866265,1766775040144,-1668.2263106,0.00013069,2]
[399866267,1766775040156,-1129.1994,0.00013069,2]
[399866269,1766775040168,-436.86076123,0.00013069,2]
[399866271,1766775040180,-530.6,0.00013069,2]
[399866272,1766775040192,-436.895,0.00013069,2]
[399866273,1766775040204,-579.47813582,0.00013069,2]
[399866274,1766775040235,-7142.45768139,0.00013069,2]
[399866275,1766775040246,-509.65562623,0.00013069,2]
[399866276,1766775040259,-27249.48216851,0.00013069,2]
[399866277,1766775040271,-865.0,0.00013069,2]
[399866278,1766775040283,-1421.76578285,0.00013069,2]
[399866279,1766775040294,-59618.48674792,0.00013069,2]
[399866280,1766775040305,-1267.82664481,0.00013069,2]
[399866281,1766775040403,-374.3586876,0.00013069,2]
[399866288,1766775040675,-0.00527406,0.00013069,2]
[399866297,1766775043589,-550266.81167983,0.00013069,2]
[399866298,1766775043600,-1000.0,0.00013099,2]
[399866299,1766775043611,-200.0,0.00013199,2]
[399866300,1766775043625,-177.95989573,0.00013259,2]
[399866301,1766775043636,-151.0,0.00013266,2]
[399866302,1766775043646,-151.0,0.00013266,2]
[399866303,1766775043664,-151.0,0.00013266,2]
[399866304,1766775043673,-151.0,0.00013266,2]
[399866305,1766775043683,-34236.5307773,0.00013269,2]
[399866306,1766775043693,-3482.5758542,0.00013269,2]
[399866307,1766775043706,-254535.1359539,0.00013269,2]
[399866308,1766775043716,-151.0,0.00013269,2]
[399866309,1766775043726,-151.0,0.00013269,2]
[399866310,1766775043737,-950.35155,0.00013269,2]
[399866311,1766775043747,-151.082582,0.00013269,2]
[399866312,1766775043758,-950.35155,0.00013269,2]
[399866313,1766775043768,-151.082582,0.00013269,2]
[399866314,1766775043779,-950.35155,0.00013269,2]
[399866315,1766775043789,-151.082582,0.00013269,2]
[399866316,1766775043800,-950.35155,0.00013269,2]
[399866317,1766775043811,-151.082582,0.00013269,2]
[399866318,1766775043821,-887.255127,0.00013269,2]
[399866319,1766775043832,-887.255127,0.00013269,2]
[399866320,1766775043842,-151.0,0.00013269,2]
[399866321,1766775043852,-887.255127,0.00013269,2]
[399866322,1766775043863,-156.09637,0.00013269,2]
[399866323,1766775043874,-887.255127,0.00013269,2]
[399866324,1766775043884,-227.119813,0.00013269,2]
[399866325,1766775043895,-227.119813,0.00013269,2]
[399866326,1766775043905,-227.119813,0.00013269,2]
[399866327,1766775043916,-227.119813,0.00013269,2]
[399866328,1766775043926,-159.28,0.0001328,2]
[399866329,1766775043937,-166.66,0.0001331,2]
[399866330,1766775043947,-200.0,0.00013331,2]
[399866331,1766775043958,-166.66,0.00013356,2]
[399866332,1766775043968,-12777.28658327,0.00013432,2]
[399866333,1766775043979,-6005.77685496,0.00013432,2]
[399866334,1766775043989,-200.0,0.00013464,2]
[399866335,1766775043999,-152.29,0.00013496,2]
[399866336,1766775044009,-2285.75,0.00013556,2]
[399866337,1766775044019,-200.0,0.00013599,2]
[399866338,1766775044030,-500.0,0.00013609,2]
[399866339,1766775044040,-200.0,0.00013609,2]
[399866340,1766775044050,-200.0,0.00013609,2]
[399866341,1766775044060,-150.0,0.00013628,2]
[399866342,1766775044070,-166.66,0.00013631,2]
[399866343,1766775044080,-159.28,0.0001367,2]
[399866344,1766775044091,-250.0,0.00013682,2]
[399866345,1766775044102,-500.0,0.00013698,2]
[399866346,1766775044112,-500.0,0.00013698,2]
[399866347,1766775044123,-500.0,0.00013698,2]
[399866348,1766775044133,-500.0,0.00013698,2]
[399866349,1766775044143,-500.0,0.00013698,2]
[399866350,1766775044154,-500.0,0.00013698,2]
[399866351,1766775044164,-500.0,0.00013698,2]
[399866352,1766775044175,-500.0,0.00013698,2]
[399866353,1766775044185,-500.0,0.00013698,2]
[399866354,1766775044201,-500.53041064,0.00013698,2]
[399866355,1766775044211,-500.0,0.00013698,2]
[399866356,1766775044222,-500.0,0.00013698,2]
[399866357,1766775044232,-500.0,0.00013698,2]
[399866358,1766775044243,-500.0,0.00013698,2]
[399866359,1766775044253,-500.0,0.00013698,2]
[399866360,1766775044264,-500.0,0.00013698,2]
[399866361,1766775044274,-500.0,0.00013698,2]
[399866362,1766775044284,-500.0,0.00013698,2]
[399866363,1766775044295,-500.0,0.00013698,2]
[399866364,1766775044306,-509.89085484,0.00013698,2]
[399866365,1766775044317,-522.94551231,0.00013698,2]
[399866366,1766775044328,-500.0,0.00013698,2]
[399866367,1766775044338,-500.0,0.00013698,2]
[399866368,1766775044349,-500.0,0.00013698,2]
[399866369,1766775044360,-500.0,0.00013698,2]
[399866370,1766775044371,-500.0,0.00013698,2]
[399866371,1766775044382,-500.0,0.00013698,2]
[399866372,1766775044391,-500.0,0.00013698,2]
[399866373,1766775044402,-500.0,0.00013698,2]
[399866374,1766775044412,-500.0,0.00013698,2]
[399866375,1766775044422,-500.0,0.00013698,2]
[399866376,1766775044432,-500.0,0.00013698,2]
[399866377,1766775044442,-500.0,0.00013698,2]
[399866378,1766775044452,-500.0,0.00013698,2]
[399866379,1766775044463,-500.0,0.00013698,2]
[399866380,1766775044473,-500.0,0.00013698,2]
[399866381,1766775044485,-500.0,0.00013698,2]
[399866382,1766775044495,-500.0,0.00013698,2]
[399866383,1766775044506,-570.5676631,0.00013698,2]
[399866384,1766775044515,-500.0,0.00013698,2]
[399866385,1766775044525,-500.0,0.00013698,2]
[399866386,1766775044535,-506.09518217,0.00013698,2]
[399866387,1766775044551,-500.0,0.00013698,2]
[399866388,1766775044561,-500.0,0.00013698,2]
[399866389,1766775044571,-500.0,0.00013698,2]
[399866390,1766775044582,-572.01503076,0.00013698,2]
[399866391,1766775044593,-500.0,0.00013698,2]
[399866392,1766775044603,-537.08080823,0.00013698,2]
[399866393,1766775044614,-500.0,0.00013698,2]
[399866394,1766775044628,-500.0,0.00013698,2]
[399866395,1766775044638,-500.0,0.00013698,2]
[399866396,1766775044648,-500.0,0.00013698,2]
[399866397,1766775044659,-500.0,0.00013698,2]
[399866398,1766775044669,-531.5118952,0.00013698,2]
[399866399,1766775044679,-500.0,0.00013698,2]
[399866400,1766775044691,-500.0,0.00013698,2]
[399866401,1766775044701,-500.0,0.00013698,2]
[399866402,1766775044711,-500.0,0.00013698,2]
[399866403,1766775044721,-289.9253538,0.00013698,2]
[399866404,1766775044731,-500.0,0.00013698,2]
[399866405,1766775044742,-194.84476554,0.00013698,2]
[399866406,1766775044752,-502.77385665,0.00013698,2]
[399866407,1766775044763,-878.4,0.00013698,2]
[399866408,1766775044773,-200.0,0.00013699,2]
[399866409,1766775044783,-664.58,0.00013699,2]
[399866410,1766775044792,-151.0,0.00013699,2]
[399866411,1766775044802,-151.0,0.00013699,2]
[399866412,1766775044812,-151.0,0.00013699,2]
[399866413,1766775044823,-151.0,0.00013699,2]
[399866414,1766775044834,-500.0,0.00013699,2]
[399866415,1766775044844,-500.0,0.00013699,2]
[399866416,1766775044854,-500.0,0.00013699,2]
[399866417,1766775044864,-500.0,0.00013699,2]
[399866418,1766775044875,-516.12523342,0.00013699,2]
[399866419,1766775044885,-300.0,0.00013706,2]
[399866420,1766775044895,-250.0,0.00013706,2]
[399866421,1766775044906,-200.0,0.00013735,2]
[399866422,1766775044916,-151.0,0.00013832,2]
[399866423,1766775044927,-600.0,0.00013835,2]
[399866424,1766775044937,-600.0,0.00013835,2]
[399866425,1766775044947,-441.16978428,0.00013835,2]
[399866426,1766775044958,-300.0,0.00013835,2]
[399866427,1766775044968,-277.97998795,0.00013844,2]
[399866428,1766775044978,-246.79219942,0.00013844,2]
[399866429,1766775044988,-166.66,0.00013859,2]
[399866430,1766775044999,-12777.28658327,0.00013866,2]
[399866431,1766775045009,-6005.77685496,0.00013866,2]
[399866432,1766775045019,-153.737153,0.00013866,2]
[399866433,1766775045030,-153.737153,0.00013866,2]
[399866434,1766775045040,-153.737153,0.00013866,2]
[399866435,1766775045050,-166.66,0.00013906,2]
[399866436,1766775045060,-878.4,0.00013972,2]
[399866437,1766775045070,-159.28,0.00014061,2]
[399866438,1766775045080,-8307.05586743,0.00014092,2]
[399866439,1766775045090,-151.0,0.00014092,2]
[399866440,1766775045099,-151.0,0.00014092,2]
[399866441,1766775045110,-151.0,0.00014092,2]
[399866442,1766775045120,-151.0,0.00014092,2]
[399866443,1766775045130,-151.0,0.00014092,2]
[399866444,1766775045140,-194.978527,0.00014092,2]
[399866445,1766775045150,-950.35155,0.00014092,2]
[399866446,1766775045161,-151.082582,0.00014092,2]
[399866447,1766775045171,-950.35155,0.00014092,2]
[399866448,1766775045181,-151.082582,0.00014092,2]
[399866449,1766775045191,-950.35155,0.00014092,2]
[399866450,1766775045201,-151.082582,0.00014092,2]
[399866451,1766775045211,-950.35155,0.00014092,2]
[399866452,1766775045221,-151.082582,0.00014092,2]
[399866453,1766775045231,-887.255127,0.00014092,2]
[399866454,1766775045243,-887.255127,0.00014092,2]
[399866455,1766775045253,-151.0,0.00014092,2]
[399866456,1766775045264,-887.255127,0.00014092,2]
[399866457,1766775045274,-887.255127,0.00014092,2]
[399866458,1766775045286,-227.119813,0.00014092,2]
[399866459,1766775045295,-227.119813,0.00014092,2]
[399866460,1766775045305,-227.119813,0.00014092,2]
[399866461,1766775045315,-227.119813,0.00014092,2]
[399866462,1766775045325,-572.581506,0.00014092,2]
[399866463,1766775045334,-151.0,0.00014092,2]